Cogmind - Beta 10.1 @@@ ROGUE MODE // 2020.09.23 @ 23:55:23 Player: Sukhoy Result: Destroyed by DAS Turret with DAS Cannon Performance ------------- Evolutions (1) 500 Regions Visited (5) 1000 Robots Destroyed (59) 295 Value Destroyed (1402) 1402 Prototype IDs (3) 60 Alien Tech Used (0) 0 Bonus (0) 0 TOTAL SCORE: 3257 Bonus ------- None Cogmind --------- Core Integrity 0/400 Matter 233/300 Energy 100/100 System Corruption 7% Temperature Cool (0) Movement Core (550) Ox10 Location -9/Exiles Parts ------- > --- POWER (1) -------- (None) > --- PROPULSION (3) --- (None) > --- UTILITY (3) ------ High-capacity Storage Unit > --- WEAPON (2) ------- (None) > --- INVENTORY (12) --- Ion Engine Light Ion Engine Reinforced Ion Engine Light Fission Core Heat Sink Large Storage Unit Shield Generator Grenade Launcher Peak State ------------ > --- POWER ------------ Light Nuclear Core > --- PROPULSION ------- Light Treads Light Treads Light Treads > --- UTILITY ---------- Large Storage Unit Weight Redist. System Medium Armor Plating > --- WEAPON ----------- Makeshift Shrapnel Gun Improved Light Cannon > --- INVENTORY -------- Ion Engine Light Ion Engine Reinforced Ion Engine Light Fission Core Heat Sink Shield Generator Grenade Launcher [Rating: 18] Favorites ----------- Power Light Nuclear Core Engine Reinforced Ion Engine Power Core Light Nuclear Core Propulsion Light Treads Treads Light Treads Leg Aluminum Leg Wheel Wheel Hover Unit Hover Unit Utility Large Storage Unit Device Weight Redist. System Storage Large Storage Unit Processor Seismic Analyzer Protection Medium Armor Plating Weapon Improved Light Cannon Energy Gun Medium Laser Energy Cannon Light EM Pulse Cannon Ballistic Gun Makeshift Shrapnel Gun Ballistic Cannon Improved Light Cannon Launcher Grenade Launcher Build | -11 -10 -10 -9 -9 -9 ------- Run | Scr Mat Min Mat Min Exi Slots Evolved 2 | . . . 2 . . Power . | . . . . . . Propulsion 1 | . . . 1 . . Utility 1 | . . . 1 . . Weapon . | . . . . . . Parts Attached 77 | 8 17 1 25 24 2 Power 7 | 1 1 1 1 2 1 Engine 4 | 1 . 1 1 1 . Core 3 | . 1 . . 1 1 Reactor . | . . . . . . Propulsion 22 | 2 4 . 7 9 . Treads 8 | 2 2 . . 4 . Leg 2 | . . . . 2 . Wheel 6 | . . . 3 3 . Hover 6 | . 2 . 4 . . Flight . | . . . . . . Utility 15 | 3 4 . 5 2 1 Device 6 | 1 1 . 3 1 . Storage 5 | 1 3 . . . 1 Processor 1 | 1 . . . . . Hackware . | . . . . . . Protection 3 | . . . 2 1 . Artifact . | . . . . . . Weapon 33 | 2 8 . 12 11 . Energy Gun 4 | 1 3 . . . . Energy Cannon 7 | . . . 5 2 . Ballistic Gun 5 | 1 . . . 4 . Ballistic Cannon 7 | . 2 . 3 2 . Launcher 10 | . 3 . 4 3 . Special Weapon . | . . . . . . Impact Weapon . | . . . . . . Slashing Weapon . | . . . . . . Piercing Weapon . | . . . . . . Special Melee Weapon . | . . . . . . Unidentified Prototypes 1 | . . . 1 . . Parts Lost 21 | . 1 . 2 10 8 Power 2 | . . . . 1 1 Propulsion 8 | . . . 1 4 3 Utility 3 | . . . . 1 2 Weapon 8 | . 1 . 1 4 2 Highest Loss Streak 8 | . 1 . 2 5 8 Average Slot Usage (%) 96 | . 99 100 96 92 98 Engine 5 | . 4 3 11 5 . Core 6 | . 9 10 . 5 11 Treads 18 | . 27 28 . 15 32 Leg 3 | . . . . 9 . Wheel 3 | . . . 18 2 . Hover 2 | . . . 12 . . Device 13 | . 14 14 20 11 11 Storage 11 | . 13 14 11 11 11 Protection 4 | . . . . 8 11 Energy Gun 1 | . 7 . . . . Energy Cannon 1 | . . . 6 2 . Ballistic Gun 5 | . 8 . . 7 11 Ballistic Cannon 14 | . 11 28 13 10 10 Naked Turns . | . . . . . . Heaviest Build 50 | 13 31 31 36 39 50 Greatest Support 66 | 40 40 40 36 66 66 Greatest Overweight (x) 5 | . 2 . 3 3 5 Average Overweight (x) . | . . . . . . Largest Inventory Capacity 12 | 6 10 10 10 10 12 Average Capacity 9 | 5 7 10 10 10 10 Most Carried 10 | 5 10 10 10 9 8 Average Carried 7 | 3 7 9 9 5 7 Final Capacity 12 | 4 10 10 10 10 12 Final Carried 10 | 4 10 9 9 6 8 Class Distribution -------------------- 68% | Mutant 31% | Scavenger-Mutant Dominant Class ---------------- Mutant | -10/Materials Mutant | -10/Mines Mutant | -9/Materials Mutant | -9/Mines Scavenger-Mutant | -9/Exiles Resources | -11 -10 -10 -9 -9 -9 ----------- Run | Scr Mat Min Mat Min Exi Matter Collected 1667 | 290 236 93 403 645 . Remotely . | . . . . . . Salvage Created 1574 | 95 320 71 483 605 . Parts 100 | 4 20 1 45 30 . Haulers Intercepted 1 | . . . 1 . . Recyclers Shooed 3 | . . . 1 2 . Parts Field Recycled . | . . . . . . Retrieved Matter . | . . . . . . Parts Self-Destructed . | . . . . . . Prevented . | . . . . . . Kills | -11 -10 -10 -9 -9 -9 ------- Run | Scr Mat Min Mat Min Exi Combat Hostiles Destroyed 41 | . 9 2 15 15 . Guns 5 | . 2 . . 3 . Cannons 15 | . 1 2 6 6 . AOE 21 | . 6 . 9 6 . Classes Destroyed 12 | 2 2 . 5 3 . Worker 2 | . . . 2 . . Builder 5 | . . . 2 3 . Tunneler 1 | 1 . . . . . Hauler 1 | . . . 1 . . Recycler 5 | 1 . . 2 2 . Watcher 4 | . 2 . 2 . . Swarmer 7 | . . . 7 . . Grunt 26 | . 9 2 6 9 . Brawler 2 | . . . . 2 . Duelist 2 | . . . . 2 . Sentry 2 | . . . 2 . . Assembled 2 | . . . . 2 . Best Kill Streak 16 | 2 6 2 16 5 . Combat Bots Only 7 | . 6 2 7 5 . Max Kills in Single Turn 6 | 1 3 1 6 2 . Gunslinging . | . . . . . . Exploded 4 | . 3 . 4 2 . Melee . | . . . . . . Uniques/NPCs Destroyed . | . . . . . . Combat | -11 -10 -10 -9 -9 -9 -------- Run | Scr Mat Min Mat Min Exi Damage Taken 2694 | . 424 48 404 1169 649 Core 563 | . 119 . 33 176 235 Absorbed by Shields 141 | . 8 19 75 39 . Core Remaining (%) 76 | 100 . 52 . . . Volleys Fired 123 | 10 24 4 31 54 . Largest 2 | 2 2 2 2 2 . Hottest 112 | 70 78 78 112 95 . Shots Fired 228 | 20 45 8 52 102 1 Gun 71 | 20 28 . . 23 . Cannon 133 | . 11 8 41 72 1 Launcher 24 | . 6 . 11 7 . Special . | . . . . . . Kinetic 141 | 10 29 8 29 64 1 Thermal 20 | 10 10 . . . . Explosive 24 | . 6 . 11 7 . Electromagnetic 43 | . . . 12 31 . Robot Hit Streak 12 | 7 9 4 9 12 . Robot Miss Streak 5 | 3 3 1 2 5 1 Penetration Max . | . . . . . . Secondary Targets . | . . . . . . Shots Hit Robots 139 | 14 28 6 33 58 . Core Hits 89 | 3 20 3 30 33 . Critical Hits 1 | . . . . 1 . Critical Kills . | . . . . . . Critical Parts Destroyed 1 | . . . . 1 . Melee Attacks . | . . . . . . Impact . | . . . . . . Slashing . | . . . . . . Piercing . | . . . . . . Sneak Attacks . | . . . . . . Combat Hostiles . | . . . . . . Follow-up Attacks . | . . . . . . Damage Inflicted 3860 | 132 568 107 1565 1488 . Guns 601 | 132 170 . . 299 . Cannons 1600 | . 101 107 553 839 . Explosions 1626 | . 297 . 979 350 . Melee . | . . . . . . Ramming 33 | . . . 33 . . Kinetic 1428 | 47 173 107 396 705 . Thermal 213 | 85 98 . . 30 . Explosive 1596 | . 297 . 979 320 . Electromagnetic 590 | . . . 157 433 . Impact . | . . . . . . Slashing . | . . . . . . Piercing . | . . . . . . Highest Corruption 7 | . 2 2 2 6 7 Average Corruption 4 | . 2 2 2 5 6 Corruption Purged . | . . . . . . Effects 50 | . . 7 5 32 6 Message Errors 16 | . . 3 2 10 1 Matter Fused 16 | . . . . 13 3 Heat Flow Errors 4 | . . 2 . 2 . Energy Discharges 2 | . . 1 . 1 . Parts Rejected 1 | . . . . 1 . Data Loss (minor) 4 | . . . 2 1 1 Data Loss (major) 1 | . . . . 1 . Misfires 1 | . . . . . 1 Targeting Errors 3 | . . 1 1 1 . Weapon Failures 2 | . . . . 2 . Overload Shots . | . . . . . . Overflow Damage 78 | . 6 . 67 5 . Projectiles 5 | . . . . 5 . Explosions 60 | . 6 . 54 . . Melee 13 | . . . 13 . . Knockbacks 12 | . . 1 3 8 . Impact . | . . . . . . Kinetic 12 | . . 1 3 8 . Secondary . | . . . . . . Self-Inflicted Damage 134 | . 25 . 63 46 . Shots 7 | . 2 . 3 2 . Rammed 2 | . . . 1 1 . Targets Rammed 2 | . . . 1 1 . Kicked . | . . . . . . Crushed . | . . . . . . Highest Temperature 290 | 120 131 156 190 290 5 Average Temperature 68 | 54 46 71 58 83 3 Received Heat Transfer 659 | . 226 28 108 297 . Effects 1 | . . . . 1 . Energy Bleed 1 | . . . . 1 . Siege Activations . | . . . . . . Robots Corrupted . | . . . . . . Combat Hostiles . | . . . . . . Parts Fried . | . . . . . . Impact Corruptions 1 | . . . 1 . . Robots Melted . | . . . . . . Combat Hostiles . | . . . . . . Parts Melted . | . . . . . . Heat Transferred 593 | 259 284 . . 50 . Parts Sabotaged . | . . . . . . Parts Stolen . | . . . . . . Parts Stripped . | . . . . . . Power Chain Reactions 1 | . . . . 1 . Missiles Intercepted . | . . . . . . Alert | -11 -10 -10 -9 -9 -9 ------- Run | Scr Mat Min Mat Min Exi Peak Influence 259 | 10 251 50 259 150 . Initial 100 | . 6 19 19 100 . Average 64 | 3 125 26 71 62 . Maximum Alert Level 1 | . 1 . 1 . . Low Security (%) 96 | 100 81 100 94 100 . Level 1 3 | . 18 . 5 . . Level 2 . | . . . . . . Level 3 . | . . . . . . Level 4 . | . . . . . . Level 5 . | . . . . . . High Security . | . . . . . . Max Security . | . . . . . . Squads Dispatched 4 | . 2 . 2 . . Investigation 3 | . 1 . 2 . . Extermination . | . . . . . . Reinforcement 1 | . 1 . . . . Assault . | . . . . . . Garrison . | . . . . . . Intercept . | . . . . . . Construction Impeded . | . . . . . . Haulers Reinforced . | . . . . . . Stealth | -11 -10 -10 -9 -9 -9 --------- Run | Scr Mat Min Mat Min Exi Distress Signals 4 | . 1 . 2 1 . Communications Jammed . | . . . . . . Distress Signals . | . . . . . . Times Spotted 86 | . 12 2 22 35 15 Peak Tracking Total 17 | . 5 2 7 17 13 Tactical Retreats 4 | . . . . 3 1 Traps | -11 -10 -10 -9 -9 -9 ------- Run | Scr Mat Min Mat Min Exi Traps Triggered 2 | . 1 . 1 . . Indirectly . | . . . . . . Trap Hack Attempts . | . . . . . . Triggered . | . . . . . . Disarmed . | . . . . . . Reprogrammed . | . . . . . . Reused . | . . . . . . Traps Extracted . | . . . . . . Installed . | . . . . . . Triggered . | . . . . . . Machines | -11 -10 -10 -9 -9 -9 ---------- Run | Scr Mat Min Mat Min Exi Machines Disabled 4 | . 1 . 2 . 1 Max in Single Turn 2 | . 1 . 2 . 1 Machines Sabotaged . | . . . . . . Garrisons Compromised . | . . . . . . Overloaded Fab Kills . | . . . . . . Fab Network Shutdowns . | . . . . . . Hacking | -11 -10 -10 -9 -9 -9 --------- Run | Scr Mat Min Mat Min Exi Machines Accessed 4 | . 1 . 3 . . Terminals 4 | . 1 . 3 . . Fabricators . | . . . . . . Repair Stations . | . . . . . . Recycling Units . | . . . . . . Scanalyzers . | . . . . . . Garrison Access . | . . . . . . Total Hacks 14 | . 3 . 11 . . Successful 12 | . 3 . 9 . . Failed 2 | . . . 2 . . Catastrophic . | . . . . . . Database Lockouts . | . . . . . . Manual . | . . . . . . Terminals 14 | . 3 . 11 . . Fabricators . | . . . . . . Repair Stations . | . . . . . . Recycling Units . | . . . . . . Scanalyzers . | . . . . . . Garrison Access . | . . . . . . Terminal Hacks 12 | . 3 . 9 . . Record 6 | . 2 . 4 . . Prototype ID Bank 1 | . . . 1 . . Terminal Index 1 | . . . 1 . . Alert Level 1 | . . . 1 . . Unreport Threat 1 | . . . 1 . . Locate Traps 1 | . 1 . . . . Patrol Status 1 | . . . 1 . . Fabricator Hacks . | . . . . . . Repair Station Hacks . | . . . . . . Recycling Unit Hacks . | . . . . . . Scanalyzer . | . . . . . . Garrison Access Hacks . | . . . . . . Unauthorized Hacks . | . . . . . . Terminals . | . . . . . . Fabricators . | . . . . . . Repair Stations . | . . . . . . Recycling Units . | . . . . . . Scanalyzers . | . . . . . . Garrison Access . | . . . . . . Data Cores Recovered . | . . . . . . Used . | . . . . . . Hacking Detections 4 | . 1 . 3 . . Full Trace Events 3 | . 1 . 2 . . Feedback Events . | . . . . . . Feedback Blocked . | . . . . . . Robot Schematics Acquired . | . . . . . . Robots Built . | . . . . . . Matter . | . . . . . . Time . | . . . . . . Total Robot Build Rating . | . . . . . . Part Schematics Acquired . | . . . . . . Parts Built . | . . . . . . Matter . | . . . . . . Time . | . . . . . . Total Part Build Rating . | . . . . . . Parts Repaired . | . . . . . . Time . | . . . . . . Parts Recycled . | . . . . . . Recycled Matter . | . . . . . . Retrieved Matter . | . . . . . . Retrieved Components . | . . . . . . Parts Scanalyzed . | . . . . . . Part Schematics Acquired . | . . . . . . Parts Damaged . | . . . . . . Bothacking | -11 -10 -10 -9 -9 -9 ------------ Run | Scr Mat Min Mat Min Exi Used RIF Installer . | . . . . . . Robots Hacked . | . . . . . . Non-combat . | . . . . . . Combat . | . . . . . . Robot Hacks Applied . | . . . . . . Relay Couplers Released . | . . . . . . Robots Rewired . | . . . . . . Allies Hacked . | . . . . . . Hacks Repelled . | . . . . . . Allies | -11 -10 -10 -9 -9 -9 -------- Run | Scr Mat Min Mat Min Exi Total Allies . | . . . . . . Largest Group . | . . . . . . Highest-Rated Group . | . . . . . . Highest-Rated Ally . | . . . . . . Total Orders . | . . . . . . Ally Attacks . | . . . . . . Total Damage . | . . . . . . Kills . | . . . . . . Allies Corrupted . | . . . . . . Allies Melted . | . . . . . . Intel | -11 -10 -10 -9 -9 -9 ------- Run | Scr Mat Min Mat Min Exi Robot Analysis Total . | . . . . . . Derelict Logs Recovered 1 | . . 1 . . . Drone Launches . | . . . . . . Drone Recoveries . | . . . . . . Exploration | -11 -10 -10 -9 -9 -9 ------------- Run | Scr Mat Min Mat Min Exi Turns Passed 3333 | 149 518 609 496 1332 229 Spaces Moved 1834 | 69 232 354 352 689 138 Core 58 | 12 . . 3 42 1 Treads 1317 | 57 230 354 . 539 137 Legs 10 | . . . . 10 . Wheels 307 | . . . 209 98 . Hover 142 | . 2 . 140 . . Flight . | . . . . . . Fastest Speed 50 | 50 160 160 80 90 160 Average Speed 146 | 140 160 160 94 160 161 Slowest Speed 300 | 160 176 160 200 200 300 Overloaded Moves . | . . . . . . Propulsion Burnouts . | . . . . . . Robots Hopped . | . . . . . . Cave-ins Triggered . | . . . . . . Exploration Rate (%) 45 | 5 34 76 35 88 37 Regions Visited 5 Branch Regions 3 Pre-discovered Areas . | . . . . . . Known Exits Taken . | . . . . . . Unknown Exits Taken 5 | 1 1 1 1 1 . Scrap Searched 3 | . . 2 . 1 . Spaces Dug . | . . . . . . Terrain Destroyed 151 | . 31 1 79 40 . Melee . | . . . . . . Projectile 4 | . . 1 1 2 . AOE 147 | . 31 . 78 38 . Terrain Rammed . | . . . . . . Walls Destroyed . | . . . . . . Machines Disabled . | . . . . . . Actions | -11 -10 -10 -9 -9 -9 --------- Run | Scr Mat Min Mat Min Exi Total 2243 | 102 335 390 461 810 145 Wait 124 | 4 34 25 31 28 2 Move 1829 | 68 231 353 351 688 138 Hop . | . . . . . . Pick Up 57 | 12 18 3 10 12 2 Fast Attach 3 | . . . 3 . . Attach 27 | 7 1 . 5 13 1 Detach 2 | . . . 1 . 1 Swap 47 | 1 16 1 17 11 1 Drop 29 | . 11 4 11 3 . Fire 123 | 10 24 4 31 54 . Melee . | . . . . . . Ram 1 | . . . 1 . . Kick . | . . . . . . Crush 1 | . . . . 1 . Escape Stasis . | . . . . . . Rewire . | . . . . . . Trap . | . . . . . . Miscellaneous . | . . . . . . Route ------- -11/Scrapyard -10/Materials -10/Mines -9/Materials -9/Mines (discovered 3 exits: [*Mat x2] / [*Exi]) -9/Exiles (discovered 1 exit: [*Min]) History --------- Turn | Location | Event 22 | -11/Scrapyard | Discovered new exit (range 16) 150 | -11/Scrapyard | Entered Materials 324 | -10/Materials | Build established: Mutant 570 | -10/Materials | Discovered new exit (range 12) 668 | -10/Materials | Entered Mines 692 | -10/Mines | YI-UF0 nonchalantly dropped a Grenade Launcher on the ground 1011 | -10/Mines | A weapon hastily lodged in a ceiling crevice suddenly fell to the ground 1202 | -10/Mines | Learned Materials garrison access intel 1245 | -10/Mines | Discovered new exit (range 13) 1277 | -10/Mines | Entered Materials 1277 | -9/Materials | Evolved 2 slots: Propulsion x1, Utility x1 1709 | -9/Materials | Discovered new exit (range 15) 1746 | -9/Materials | Destroyed 7 combat bots 1773 | -9/Materials | Entered Mines 1796 | -9/Mines | Assembled infested the area 1856 | -9/Mines | Lost 5 parts (2n1u2w) 2035 | -9/Mines | Discovered new exit (range 10) 2045 | -9/Mines | Lost 4 parts (1p2n1w) 2122 | -9/Mines | Discovered new exit (range 5) 2520 | -9/Mines | Found a hidden stash of uninstalled traps 2603 | -9/Mines | Core integrity fell below 50% 2919 | -9/Mines | Build established: Scavenger-Mutant 3099 | -9/Mines | Deemed a non-threat by the Exiles lab entrance 3099 | -9/Mines | Discovered new exit (range 5) 3105 | -9/Mines | Entered Exiles 3137 | -9/Exiles | Discovered new exit (range 14) 3182 | -9/Exiles | Met 8R-AWN 3214 | -9/Exiles | Met EX-HEX 3314 | -9/Exiles | Met EX-DEC 3321 | -9/Exiles | Attacked by the Exiles 3333 | -9/Exiles | Core integrity fell below 20% 3334 | -9/Exiles | Destroyed by DAS Turret with DAS Cannon Last Messages --------------- your atomic chain! EX-DEC: "Oops, I hope HEX didn't hear that..." System corrupted: FCS attempts to trigger Imp. Light Cannon. System corrupted: Imp. Light Cannon misfires. EXILES: Hostile robot within lab perimeter. Defensive protocols time, folks! Machine disabled. EX-DEC: "Let's see what this bad boy can do..." EX-DEC deploys DAS Turret. Imp. Light Cannon destroyed. Lgt. Treads destroyed. Machine disabled. Lgt. Treads destroyed. Med. Armor Plating destroyed. Weight Redist. System destroyed. Mak. Shrapnel Gun destroyed. Lgt. Nuclear Core destroyed. Knocked back. EX-BIN: "I just want to science!" Knocked back. Map ----- +----------------------------------------------------+ | ?????????????????????????????????????????????????? | | ?????????????????????????????????????????????????? | | ?????????????????????????????????????????????????? | | ???????????????????????????????????????????##""?"" | | ????????????????????????????????????????? " """ | | ??????????????????????????????????????? "" | | ????????????????????????????????????? " | | ????????????????????????????????????? | | ?????????????????? ? ?????????????? | | ???????????????? ????????????? | | ??????????????? ?????????????? | | ?????????????? ?????????????? | | ???????????? ??????????????""" | | ???????????"" ""?????????????#""" | | ??????????"" """?????????????#"""" | | ??????????" c ""????????????##"" | | ?????????"" ########??####"""" | | ??????????"" t ##aaa####""" | | ??????????" """" | | ??????????"" a | | ?????????#"""" a | | ??????????# a " | | ??????????#" " "" "" | | ??????????#"""" a aa ""## ##""" " " ""# | | ??????????#"" "#### ######""" """# | | ??????????#" @"""##??# #????###""""## | | ??????????#""" """#??## ####???######? | | ???????????# ""##??# "!#?????????? | | ???????????#"" """##???#" !#?????????? | | ???????????##""" ##????#" "#?????????? | | ????????????##"""" ##?????#!!""!"#?????????? | | ?????????????### #??????########?????????? | | ???????????????##### ##???????????????????????? | | ???????????????????##c #????????????????????????? | | ????????????????????# #????????????????????????? | | ????????????????????# #????????????????????????? | | ????????????????????# #????????????????????????? | | ????????????????????# #????????????????????????? | | ????????????????????# #????????????????????????? | | ????????????????????? #????????????????????????? | | ????????????????????? ?????????????????????????? | | ?????????????????????????????????????????????????? | | ?????????????????????????????????????????????????? | | ?????????????????????????????????????????????????? | | ?????????????????????????????????????????????????? | | ?????????????????????????????????????????????????? | | ?????????????????????????????????????????????????? | | ?????????????????????????????????????????????????? | | ?????????????????????????????????????????????????? | | ?????????????????????????????????????????????????? | +----------------------------------------------------+ Best States ------------- Heat Dissipation 28 Energy Generation 14 Energy Capacity 265 Matter Stores 300 Matter Capacity 300 Sight Range 16 Terrain Scan Range 16 Terrain Scan Density 60 Additional Mass Support 6 Armor Coverage 225 Evasion (%) 50 Recoil Reduction 3 Item Schematics ----------------- None Robot Schematics ------------------ None Fabricated ------------ Nothing Alien Tech Used ----------------- None Achievements -------------- I Survived The Infestation Slippery One Tourist Challenges ------------ None Game ------ Seed AluminumLongswordCoupler Manual? 0 Play Time 00:49:09 Cumulative 7.1 hours Start 2020.09.22 @ 23:34:12 End 2020.09.23 @ 23:55:23 Sessions 3 Manual Loads 0 Difficulty Rogue Special Mode None Game No. 5 Rogue 5 Adventurer 0 Explorer 0 Win Type - Total 0 Types 0/0/0/0/0/0/0/0/0 Lore% 2 Gallery% 13 Achievement% 12 Wizard Run 0 Options --------- ASCII 0 Keyboard 0 Movement Mouse Keybinds 0 Fullscreen 1 Font 18/TerminusBold Map View 76x50 Tactical HUD 0 Map Filters NONE Filters NONE Steam 1 RUN: 6dd56140-3adc-439d-88a4-748b19cf9e7b